fUSD/lending_fUSD_20240331
["ID","MTS","AMOUNT","RATE_DAILY","PERIOD"]
[321126904,1711901465263,-500.0,0.00055342,120]
[321126905,1711901465273,-500.0,0.00055342,120]
[321126906,1711901465283,-500.0,0.00055342,120]
[321126907,1711901465292,-1225.51,0.00055342,120]
[321126908,1711901465302,-216.88,0.00055342,120]
[321126909,1711901465311,-500.0,0.00055342,120]
[321126910,1711901465320,-500.0,0.00055342,120]
[321126911,1711901465328,-1642.24,0.00055342,120]
[321126912,1711901465337,-500.0,0.00055342,120]
[321126913,1711901465347,-500.0,0.00055342,120]
[321126914,1711901465356,-503.46775973,0.00055342,120]
[321126915,1711901465367,-1400.86,0.00055342,120]
[321126916,1711901465377,-312.61117587,0.00055342,120]
[321126917,1711901465387,-5107.76,0.00055342,120]
[321126918,1711901465397,-500.0,0.00055342,120]
[321126919,1711901465407,-7108.28,0.00055342,120]
[321126920,1711901465416,-500.0,0.00055342,120]
[321126921,1711901465426,-500.0,0.00055342,120]
[321126922,1711901465435,-500.0,0.00055342,120]
[321126923,1711901465444,-500.0,0.00055342,120]
[321126924,1711901465454,-629.57,0.00055342,120]
[321126925,1711901465463,-500.0,0.00055342,120]
[321126926,1711901465472,-500.0,0.00055342,120]
[321126927,1711901465482,-500.0,0.00055342,120]
[321126928,1711901465491,-1267.36,0.00055342,120]
[321126929,1711901465501,-500.0,0.00055342,120]
[321126930,1711901465510,-500.0,0.00055342,120]
[321126931,1711901465520,-500.0,0.00055342,7]
[321126932,1711901465530,-977.83,0.00055342,120]
[321126933,1711901465540,-1487.37,0.00055342,120]
[321126934,1711901465549,-500.0,0.00055342,120]
[321126935,1711901465559,-500.0,0.00055342,120]
[321126936,1711901465569,-500.0,0.00055342,120]
[321126937,1711901465578,-500.0,0.00055342,120]
[321126938,1711901465587,-500.0,0.00055342,120]
[321126939,1711901465599,-2308.38,0.00055342,120]
[321126940,1711901465611,-500.0,0.00055342,120]
[321126941,1711901465620,-1843.78,0.00055342,120]
[321126942,1711901465630,-500.0,0.00055342,120]
[321126943,1711901465639,-500.0,0.00055342,120]
[321126944,1711901465649,-500.34,0.00055342,120]
[321126945,1711901465659,-500.0,0.00055342,120]
[321126946,1711901465669,-500.0,0.00055342,120]
[321126947,1711901465678,-500.0,0.00055342,120]
[321126948,1711901465687,-500.0,0.00055342,120]
[321126949,1711901465697,-500.0,0.00055342,120]
[321126950,1711901465846,-1933.04,0.00055342,120]
[321126951,1711901465856,-500.0,0.00055342,120]
[321126952,1711901465866,-500.0,0.00055342,120]
[321126953,1711901465876,-500.0,0.00055342,120]
[321126954,1711901465886,-598.21176362,0.00055342,120]
[321126955,1711901465896,-163.48,0.00055342,120]
[321126956,1711901465906,-500.0,0.00055342,120]
[321126957,1711901465916,-200.92,0.00055342,120]
[321126958,1711901465926,-500.0,0.00055342,120]
[321126959,1711901465936,-500.0,0.00055342,120]
[321126960,1711901465945,-925.52,0.00055342,120]
[321126961,1711901465955,-500.0,0.00055342,16]
[321126962,1711901465964,-4054.58,0.00055342,120]
[321126963,1711901465975,-500.0,0.00055342,120]
[321126964,1711901465984,-500.0,0.00055342,120]
[321126965,1711901465993,-3182.14,0.00055342,120]
[321126966,1711901466002,-500.0,0.00055342,120]
[321126967,1711901466011,-519.8,0.00055342,120]
[321126968,1711901466021,-500.0,0.00055342,120]
[321126969,1711901466030,-500.0,0.00055342,120]
[321126970,1711901466039,-2000.0,0.00055342,120]
[321126971,1711901466049,-500.0,0.00055342,120]
[321126972,1711901466059,-1284.39,0.00055342,120]
[321126973,1711901466070,-500.0,0.00055342,120]
[321126974,1711901466079,-500.0,0.00055342,120]
[321126975,1711901466089,-500.0,0.00055342,120]
[321126976,1711901466099,-405.26,0.00055342,120]
[321126977,1711901466108,-9137.65,0.00055342,120]
[321126978,1711901466116,-500.0,0.00055342,120]
[321126979,1711901466125,-500.0,0.00055342,120]
[321126980,1711901466134,-9984.85,0.00055342,120]
[321126981,1711901466143,-500.0,0.00055342,120]
[321126982,1711901466153,-731.7,0.00055342,120]
[321126983,1711901466163,-974.58,0.00055342,120]
[321126984,1711901466173,-505.42,0.00055342,120]
[321126985,1711901466183,-500.0,0.00055342,120]
[321126986,1711901466193,-510.7191707,0.00055342,120]
[321126987,1711901466203,-500.0,0.00055342,120]
[321126988,1711901466213,-597.56,0.00055342,120]
[321126989,1711901466222,-500.0,0.00055342,120]
[321126990,1711901466231,-158.52,0.00055381,2]
[321126991,1711901466241,-157.44,0.000554,30]
[321126992,1711901466251,-161.36,0.000554,30]
[321126993,1711901466261,-155.39690537,0.00055515,120]
[321126994,1711901466271,-151.0,0.00055562,120]
[321126995,1711901466280,-500.0,0.00055564,35]
[321126996,1711901466290,-500.0,0.00055564,35]
[321126997,1711901466299,-500.0,0.00055564,35]
[321126998,1711901466309,-500.0,0.00055564,35]
[321126999,1711901466320,-263.35562611,0.00055616,120]
[321127000,1711901466329,-500.0,0.00055616,120]
[321127001,1711901466339,-559.53689005,0.00055616,120]
[321127002,1711901466348,-503.61219481,0.00055616,120]
[321127003,1711901466358,-500.0,0.00055616,120]
[321127004,1711901466368,-500.0,0.00055616,120]
[321127005,1711901466377,-500.0,0.00055616,120]
[321127006,1711901466386,-328.6211733,0.00055616,120]
[321127007,1711901466397,-500.0,0.00055616,120]
[321127008,1711901466407,-503.17274974,0.00055616,120]
[321127009,1711901466416,-500.0,0.00055616,120]
[321127010,1711901466426,-500.0,0.00055616,120]
[321127011,1711901466435,-500.0,0.00055616,120]
[321127012,1711901466445,-595.28371116,0.00055616,120]
[321127013,1711901466455,-1474.18,0.00055616,120]
[321127014,1711901466465,-500.0,0.00055616,120]
[321127015,1711901466475,-500.0,0.00055616,120]
[321127016,1711901466485,-500.0,0.00055616,120]
[321127017,1711901466495,-547.51,0.00055616,120]
[321127018,1711901466505,-500.0,0.00055616,120]
[321127019,1711901466514,-500.0,0.00055616,120]
[321127020,1711901466524,-500.0,0.00055616,120]
[321127021,1711901466533,-556.04,0.00055616,120]
[321127022,1711901466543,-956.39,0.00055616,120]
[321127023,1711901466554,-882.73,0.00055616,120]
[321127024,1711901466564,-500.0,0.00055616,120]
[321127025,1711901466573,-859.93,0.00055616,120]
[321127026,1711901466583,-737.17,0.00055616,120]
[321127027,1711901466592,-759.11,0.00055616,120]
[321127028,1711901466603,-500.0,0.00055616,120]
[321127029,1711901466613,-500.0,0.00055616,120]
[321127030,1711901466623,-500.0,0.00055616,120]
[321127031,1711901466633,-500.0,0.00055616,120]
[321127032,1711901466642,-504.66759034,0.00055616,120]
[321127033,1711901466652,-500.0,0.00055616,120]
[321127034,1711901466662,-880.58,0.00055616,120]
[321127035,1711901466672,-500.0,0.00055616,120]
[321127036,1711901466684,-500.0,0.00055616,120]
[321127037,1711901466694,-500.0,0.00055616,120]
[321127038,1711901466703,-503.66061422,0.00055616,120]
[321127039,1711901466713,-509.81,0.00055616,120]
[321127040,1711901466723,-500.0,0.00055616,120]
[321127041,1711901466733,-500.0,0.00055616,120]
[321127042,1711901466742,-150.0,0.00055616,120]
[321127043,1711901466751,-500.0,0.00055616,120]
[321127044,1711901466761,-500.0,0.00055616,120]
[321127045,1711901466771,-500.0,0.00055616,120]
[321127046,1711901466780,-500.0,0.00055616,120]
[321127047,1711901466790,-500.0,0.00055616,120]
[321127048,1711901466799,-500.0,0.00055616,120]
[321127049,1711901466808,-500.0,0.00055616,120]
[321127050,1711901466818,-500.0,0.00055616,120]
[321127051,1711901466827,-500.0,0.00055616,120]
[321127052,1711901466837,-1000.0,0.00055616,120]
[321127053,1711901466847,-447.98783897,0.00055616,120]
[321127054,1711901466857,-500.0,0.00055616,120]
[321127055,1711901466866,-500.0,0.00055616,120]
[321127056,1711901466875,-500.0,0.00055616,120]
[321127057,1711901466885,-500.0,0.00055616,120]
[321127058,1711901466894,-500.0,0.00055616,120]
[321127059,1711901466904,-500.0,0.00055616,120]
[321127060,1711901466914,-500.0,0.00055616,120]
[321127061,1711901466923,-599.32,0.00055616,120]
[321127062,1711901466932,-229.29,0.00055616,120]
[321127063,1711901466941,-581.24,0.00055616,120]
[321127064,1711901466951,-500.0,0.00055616,120]
[321127065,1711901466961,-500.0,0.00055616,120]
[321127066,1711901466971,-500.0,0.00055616,120]
[321127067,1711901466981,-500.0,0.00055616,120]
[321127068,1711901466990,-583.26,0.00055616,120]
[321127069,1711901466999,-500.0,0.00055616,120]
[321127070,1711901467009,-556.80985029,0.00055616,120]
[321127071,1711901467025,-412.9,0.00055616,120]
[321127072,1711901467041,-500.0,0.00055616,120]
[321127073,1711901467055,-500.0,0.00055616,120]
[321127074,1711901467071,-500.0,0.00055616,120]
[321127075,1711901467086,-502.35,0.00055616,120]
[321127076,1711901467103,-500.0,0.00055616,120]
[321127077,1711901467117,-531.93836079,0.00055616,120]
[321127078,1711901467132,-233.24,0.00055616,120]
[321127079,1711901467146,-500.0,0.00055616,120]
[321127080,1711901467161,-500.0,0.00055616,120]
[321127081,1711901467177,-500.0,0.00055616,120]
[321127082,1711901467188,-306.73,0.00055616,120]
[321127083,1711901467206,-500.0,0.00055616,120]
[321127084,1711901467221,-500.0,0.00055616,120]
[321127085,1711901467236,-500.0,0.00055616,120]
[321127086,1711901467252,-500.0,0.00055616,2]
[321127087,1711901467267,-500.0,0.00055616,120]
[321127088,1711901467284,-500.0,0.00055616,120]
[321127089,1711901467301,-500.0,0.00055616,120]
[321127090,1711901467315,-500.0,0.00055616,120]
[321127091,1711901467327,-500.0,0.00055616,120]
[321127092,1711901467341,-500.0,0.00055616,120]
[321127093,1711901467355,-648.91233684,0.00055616,120]
[321127094,1711901467370,-500.0,0.00055616,120]
[321127095,1711901467382,-500.0,0.00055616,120]
[321127096,1711901467395,-500.0,0.00055616,120]
[321127097,1711901467407,-500.0,0.00055616,120]
[321127098,1711901467421,-539.2,0.00055616,120]
[321127099,1711901467434,-500.0,0.00055616,120]
[321127100,1711901467448,-500.0,0.00055616,120]
[321127101,1711901467461,-500.0,0.00055616,120]
[321127102,1711901467474,-629.81,0.00055616,120]
[321127103,1711901467488,-500.0,0.00055616,120]
[321127104,1711901467501,-780.08,0.00055616,120]
[321127105,1711901467515,-500.0,0.00055616,120]
[321127106,1711901467528,-500.0,0.00055616,120]
[321127107,1711901467541,-500.0,0.00055616,120]
[321127108,1711901467555,-500.0,0.00055616,120]
[321127109,1711901467568,-557.44023725,0.00055616,120]
[321127110,1711901467583,-500.0,0.00055616,120]
[321127111,1711901467596,-500.0,0.00055616,120]
[321127112,1711901467612,-500.0,0.00055616,120]
[321127113,1711901467625,-500.0,0.00055616,120]
[321127114,1711901467638,-500.0,0.00055616,120]
[321127115,1711901467652,-500.0,0.00055616,120]
[321127116,1711901467664,-500.0,0.00055616,120]
[321127117,1711901467677,-500.0,0.00055616,120]
[321127118,1711901467691,-500.0,0.00055616,120]
[321127119,1711901467704,-500.0,0.00055616,120]
[321127120,1711901467717,-500.0,0.00055616,120]
[321127121,1711901467730,-500.0,0.00055616,120]
[321127122,1711901467743,-500.0,0.00055616,120]
[321127123,1711901467756,-500.0,0.00055616,120]
[321127124,1711901467769,-453.74,0.00055616,120]
[321127125,1711901467782,-500.0,0.00055616,120]
[321127126,1711901467795,-500.0,0.00055616,120]
[321127127,1711901467808,-500.0,0.00055616,120]
[321127128,1711901467821,-500.0,0.00055616,120]
[321127129,1711901467834,-500.0,0.00055616,120]
[321127130,1711901467847,-506.00644757,0.00055616,120]
[321127131,1711901467860,-500.0,0.00055616,120]
[321127132,1711901467873,-500.0,0.00055616,120]
[321127133,1711901467887,-392.00836637,0.00055616,120]
[321127134,1711901467899,-500.0,0.00055616,120]
[321127135,1711901467912,-515.94,0.00055616,120]
[321127136,1711901467925,-500.0,0.00055616,120]
[321127137,1711901467939,-500.0,0.00055616,120]
[321127138,1711901467952,-500.0,0.00055616,120]
[321127139,1711901467965,-326.84,0.00055616,120]
[321127140,1711901467979,-500.0,0.00055616,120]
[321127141,1711901467993,-500.0,0.00055616,120]
[321127142,1711901468018,-500.0,0.00055616,120]
[321127143,1711901468036,-555.64,0.00055616,120]
[321127144,1711901468052,-500.0,0.00055616,50]
[321127145,1711901468069,-500.0,0.00055616,120]
[321127146,1711901468084,-500.0,0.00055616,120]
[321127147,1711901468100,-500.0,0.00055616,120]
[321127148,1711901468121,-500.0,0.00055616,120]
[321127149,1711901468136,-500.0,0.00055616,120]
[321127150,1711901468151,-500.0,0.00055616,120]
[321127151,1711901468165,-523.34961153,0.00055616,120]
[321127152,1711901468179,-500.0,0.00055616,120]
[321127153,1711901468193,-860.04,0.00055616,120]
[321127154,1711901468208,-500.0,0.00055616,120]
[321127155,1711901468222,-500.0,0.00055616,120]
[321127156,1711901468237,-500.0,0.00055616,120]
[321127157,1711901468251,-500.0,0.00055616,120]
[321127158,1711901468264,-500.0,0.00055616,120]
[321127159,1711901468278,-500.0,0.00055616,120]
[321127160,1711901468291,-500.0,0.00055616,120]
[321127161,1711901468305,-500.0,0.00055616,120]
[321127162,1711901468318,-500.0,0.00055616,120]
[321127163,1711901468332,-500.0,0.00055616,120]
[321127164,1711901468345,-500.0,0.00055616,120]
[321127165,1711901468359,-500.0,0.00055616,120]
[321127166,1711901468372,-516.5201558,0.00055616,120]
[321127167,1711901468385,-238.1,0.00055616,120]
[321127168,1711901468398,-500.0,0.00055616,120]
[321127169,1711901468411,-315.15,0.00055616,120]
[321127170,1711901468424,-500.0,0.00055616,120]
[321127171,1711901468437,-500.0,0.00055616,120]
[321127172,1711901468450,-500.0,0.00055616,120]
[321127173,1711901468463,-500.0,0.00055616,120]
[321127174,1711901468476,-500.0,0.00055616,120]
[321127175,1711901468489,-500.0,0.00055616,120]
[321127176,1711901468502,-500.0,0.00055616,120]
[321127177,1711901468516,-568.01123762,0.00055616,120]
[321127178,1711901468529,-500.0,0.00055616,120]
[321127179,1711901468543,-500.0,0.00055616,120]
[321127180,1711901468557,-500.0,0.00055616,120]
[321127181,1711901468568,-500.0,0.00055616,120]
[321127182,1711901468577,-500.0,0.00055616,120]
[321127183,1711901468587,-500.0,0.00055616,120]
[321127184,1711901468596,-838.17,0.00055616,120]
[321127185,1711901468609,-500.0,0.00055616,120]
[321127186,1711901468618,-500.0,0.00055616,120]
[321127187,1711901468855,-595.99,0.00055616,120]
[321127188,1711901468875,-500.0,0.00055616,120]
[321127189,1711901468893,-406.93,0.00055616,120]
[321127190,1711901468903,-500.0,0.00055616,120]
[321127191,1711901468913,-500.0,0.00055616,120]
[321127192,1711901468922,-500.0,0.00055616,120]
[321127193,1711901468931,-500.0,0.00055616,120]
[321127194,1711901468941,-571.95242523,0.00055616,120]
[321127195,1711901468950,-500.0,0.00055616,120]
[321127196,1711901468959,-500.0,0.00055616,120]
[321127197,1711901468969,-721.29,0.00055616,120]
[321127198,1711901468979,-500.0,0.00055616,120]
[321127199,1711901468988,-500.0,0.00055616,120]
[321127200,1711901468997,-500.0,0.00055616,120]
[321127201,1711901469006,-500.0,0.00055616,120]
[321127202,1711901469016,-586.0,0.00055616,120]
[321127203,1711901469026,-500.0,0.00055616,120]
[321127204,1711901469036,-1795.72,0.00055616,21]
[321127205,1711901469045,-500.0,0.00055616,120]
[321127206,1711901469054,-500.0,0.00055616,120]
[321127207,1711901469063,-500.0,0.00055616,120]
[321127208,1711901469074,-500.0,0.00055616,120]
[321127209,1711901469084,-500.0,0.00055616,120]
[321127210,1711901469093,-1222.41,0.00055616,120]
[321127211,1711901469102,-589.13,0.00055616,120]
[321127212,1711901469111,-500.0,0.00055616,120]
[321127213,1711901469120,-1633.48,0.00055616,120]
[321127214,1711901469129,-500.0,0.00055616,120]
[321127215,1711901469138,-500.0,0.00055616,120]
[321127216,1711901469147,-500.0,0.00055616,120]
[321127217,1711901469157,-500.0,0.00055616,120]
[321127218,1711901469166,-500.0,0.00055616,120]
[321127219,1711901469175,-500.0,0.00055616,120]
[321127220,1711901469185,-500.0,0.00055616,120]
[321127221,1711901469193,-500.0,0.00055616,120]
[321127222,1711901469205,-500.0,0.00055616,120]
[321127223,1711901469214,-500.0,0.00055616,120]
[321127224,1711901469223,-500.0,0.00055616,120]
[321127225,1711901469234,-2610.3,0.00055616,120]
[321127226,1711901469243,-957.79,0.00055616,120]
[321127227,1711901469253,-500.0,0.00055616,120]
[321127228,1711901469263,-832.75,0.00055616,120]
[321127229,1711901469272,-500.0,0.00055616,120]
[321127230,1711901469281,-500.0,0.00055616,120]
[321127231,1711901469290,-814.32,0.00055616,120]
[321127232,1711901469300,-500.0,0.00055616,120]
[321127233,1711901469309,-597.32,0.00055616,120]
[321127234,1711901469319,-500.0,0.00055616,120]
[321127235,1711901469327,-170.14,0.00055616,120]
[321127236,1711901469336,-500.0,0.00055616,120]
[321127237,1711901469346,-581.07,0.00055616,120]
[321127238,1711901469356,-2279.79,0.00055616,120]
[321127239,1711901469365,-417.66,0.00055616,120]
[321127240,1711901469375,-500.0,0.00055616,120]
[321127241,1711901469384,-500.0,0.00055616,120]
[321127242,1711901469393,-500.0,0.00055616,120]
[321127243,1711901469403,-500.0,0.00055616,120]
[321127244,1711901469412,-500.0,0.00055616,120]
[321127245,1711901469422,-500.0,0.00055616,120]
[321127246,1711901469432,-500.0,0.00055616,120]
[321127247,1711901469441,-500.0,0.00055616,120]
[321127248,1711901469451,-1846.66,0.00055616,120]
[321127249,1711901469461,-427.79,0.00055616,120]
[321127250,1711901469472,-833.33,0.00055616,120]
[321127251,1711901469481,-500.0,0.00055616,120]
[321127252,1711901469491,-500.0,0.00055616,120]
[321127253,1711901469501,-5170.47,0.00055616,120]
[321127254,1711901469511,-193.5,0.00055616,120]
[321127255,1711901469520,-2760.2,0.00055616,120]
[321127256,1711901469530,-151.0,0.00055616,120]
[321127257,1711901469540,-1734.48,0.00055616,120]
[321127258,1711901469549,-8725.15,0.00055616,120]
[321127259,1711901469559,-1268.49,0.00055616,120]
[321127260,1711901469568,-500.0,0.00055616,120]
[321127261,1711901469579,-500.0,0.00055616,120]
[321127262,1711901469588,-500.0,0.00055616,120]
[321127263,1711901469598,-1226.84,0.00055616,120]
[321127264,1711901469612,-500.0,0.00055616,120]
[321127265,1711901469621,-4548.58,0.00055616,120]
[321127266,1711901469630,-500.0,0.00055616,120]
[321127267,1711901469639,-500.0,0.00055616,120]
[321127268,1711901469650,-1479.87,0.00055616,120]
[321127269,1711901469659,-500.0,0.00055616,120]
[321127270,1711901469668,-395.01,0.00055616,120]
[321127271,1711901469679,-1697.5,0.00055616,120]
[321127272,1711901469688,-500.0,0.00055616,120]
[321127273,1711901469698,-2334.24,0.00055616,120]
[321127274,1711901469707,-2071.17,0.00055616,120]
[321127275,1711901469717,-500.0,0.00055616,120]
[321127276,1711901469726,-500.0,0.00055616,120]
[321127277,1711901469734,-500.0,0.00055616,120]
[321127278,1711901469744,-500.0,0.00055616,120]
[321127279,1711901469752,-1307.1,0.00055616,120]
[321127280,1711901469761,-562.59,0.00055616,120]
[321127281,1711901469771,-2606.99,0.00055616,120]
[321127282,1711901469781,-500.0,0.00055616,120]
[321127283,1711901469791,-500.0,0.00055616,120]
[321127284,1711901469800,-500.0,0.00055616,120]
[321127285,1711901469809,-500.0,0.00055616,120]
[321127286,1711901469819,-1383.62,0.00055616,120]
[321127287,1711901469828,-500.0,0.00055616,120]
[321127288,1711901469838,-3025.45,0.00055616,120]
[321127289,1711901469847,-500.0,0.00055616,120]
[321127290,1711901469856,-500.0,0.00055616,120]
[321127291,1711901469865,-5933.46,0.00055616,120]
[321127292,1711901469875,-500.0,0.00055616,120]
[321127293,1711901469884,-516.8861003,0.00055616,120]
[321127294,1711901469893,-554.92,0.00055616,120]
[321127295,1711901469903,-4835.56,0.00055616,120]
[321127296,1711901469912,-1114.13,0.00055616,120]
[321127297,1711901469922,-500.0,0.00055616,120]
[321127298,1711901469931,-252.42,0.00055616,120]
[321127299,1711901469940,-500.0,0.00055616,120]
[321127300,1711901469949,-500.0,0.00055616,120]
[321127301,1711901469959,-1551.31,0.00055616,120]
[321127302,1711901469968,-500.0,0.00055616,120]
[321127303,1711901469977,-500.0,0.00055616,120]
[321127304,1711901469986,-1225.51,0.00055616,120]
[321127305,1711901469996,-500.0,0.00055616,120]
[321127306,1711901470005,-1642.24,0.00055616,120]
[321127307,1711901470014,-543.01,0.00055616,120]
[321127308,1711901470024,-1400.86,0.00055616,120]
[321127309,1711901470033,-5107.76,0.00055616,120]
[321127310,1711901470043,-500.0,0.00055616,120]
[321127311,1711901470053,-7108.28,0.00055616,120]
[321127312,1711901470063,-500.0,0.00055616,120]
[321127313,1711901470072,-500.0,0.00055616,120]
[321127314,1711901470082,-500.0,0.00055616,120]
[321127315,1711901470091,-500.0,0.00055616,120]
[321127316,1711901470101,-500.0,0.00055616,120]
[321127317,1711901470109,-1267.36,0.00055616,120]
[321127318,1711901470118,-500.0,0.00055616,120]
[321127319,1711901470127,-500.0,0.00055616,7]
[321127320,1711901470137,-1487.37,0.00055616,120]
[321127321,1711901470146,-977.83,0.00055616,120]
[321127322,1711901470156,-500.0,0.00055616,120]
[321127323,1711901470165,-500.0,0.00055616,120]
[321127324,1711901470175,-500.0,0.00055616,120]
[321127325,1711901470184,-151.0,0.00055616,120]
[321127326,1711901470193,-2308.38,0.00055616,120]
[321127327,1711901470202,-520.99946536,0.00055616,120]
[321127328,1711901470211,-1843.78,0.00055616,120]
[321127329,1711901470221,-151.0,0.00055616,120]
[321127330,1711901470230,-500.0,0.00055616,120]
[321127331,1711901470239,-500.0,0.00055616,120]
[321127332,1711901470248,-500.0,0.00055616,120]
[321127333,1711901470258,-500.0,0.00055616,120]
[321127334,1711901470267,-500.0,0.00055616,120]
[321127335,1711901470276,-500.0,0.00055616,120]
[321127336,1711901470285,-1933.04,0.00055616,120]
[321127337,1711901470295,-500.0,0.00055616,120]
[321127338,1711901470304,-500.0,0.00055616,120]
[321127339,1711901470313,-500.0,0.00055616,120]
[321127340,1711901470323,-497.61100845,0.00055616,120]
[321127341,1711901470332,-500.0,0.00055616,120]
[321127342,1711901470341,-925.52,0.00055616,120]
[321127343,1711901470350,-500.0,0.00055616,16]
[321127344,1711901470360,-4054.58,0.00055616,120]
[321127345,1711901470369,-500.0,0.00055616,120]
[321127346,1711901470378,-3182.14,0.00055616,120]
[321127347,1711901470387,-500.0,0.00055616,120]
[321127348,1711901470396,-267.41,0.00055616,120]
[321127349,1711901470405,-446.06,0.00055616,120]
[321127350,1711901470414,-500.0,0.00055616,120]
[321127351,1711901470423,-1284.39,0.00055616,120]
[321127352,1711901470433,-500.0,0.00055616,120]
[321127353,1711901470442,-500.0,0.00055616,120]
[321127354,1711901470452,-500.0,0.00055616,120]
[321127355,1711901470461,-9137.65,0.00055616,120]
[321127356,1711901470470,-151.0,0.00055616,120]
[321127357,1711901470480,-500.0,0.00055616,120]
[321127358,1711901470489,-9984.85,0.00055616,120]
[321127359,1711901470499,-500.0,0.00055616,120]
[321127360,1711901470508,-731.7,0.00055616,120]
[321127361,1711901470517,-974.58,0.00055616,120]
[321127362,1711901470526,-505.42,0.00055616,120]
[321127363,1711901470535,-500.0,0.00055616,120]
[321127364,1711901470545,-155.39690537,0.00055677,120]
[321127365,1711901470554,-151.0,0.00055753,120]
[321127366,1711901470564,-844.2957,0.0005579,2]
[321127367,1711901470574,-27132.3243,0.0005579,2]
[321127368,1711901470583,-500.0,0.0005579,2]
[321127369,1711901470592,-172.4793877,0.000558,30]
[321127370,1711901470602,-302.0,0.00055866,4]
[321127371,1711901470614,-1000.0,0.00055875,120]
[321127372,1711901470623,-160.52748431,0.0005588,120]
[321127373,1711901470632,-1474.18,0.0005589,120]
[321127374,1711901470641,-500.0,0.0005589,120]
[321127375,1711901470651,-500.0,0.0005589,120]
[321127376,1711901470660,-500.0,0.0005589,120]
[321127377,1711901470670,-500.0,0.0005589,120]
[321127378,1711901470679,-346.78,0.0005589,120]
[321127379,1711901470690,-556.04,0.0005589,120]
[321127380,1711901470699,-956.39,0.0005589,120]
[321127381,1711901470708,-882.73,0.0005589,120]
[321127382,1711901470717,-500.0,0.0005589,120]
[321127383,1711901470726,-859.93,0.0005589,120]
[321127384,1711901470735,-737.17,0.0005589,120]
[321127385,1711901470744,-759.11,0.0005589,120]
[321127386,1711901470753,-500.0,0.0005589,120]
[321127387,1711901470762,-500.0,0.0005589,120]
[321127388,1711901470771,-500.0,0.0005589,120]
[321127389,1711901470781,-500.0,0.0005589,120]
[321127390,1711901470791,-500.0,0.0005589,120]
[321127391,1711901470800,-880.58,0.0005589,120]
[321127392,1711901470809,-500.0,0.0005589,120]
[321127393,1711901470819,-509.81,0.0005589,120]
[321127394,1711901470828,-500.0,0.0005589,120]
[321127395,1711901470837,-500.0,0.0005589,120]
[321127396,1711901470847,-150.0,0.0005589,120]
[321127397,1711901470856,-500.0,0.0005589,120]
[321127398,1711901470866,-500.0,0.0005589,120]
[321127399,1711901470876,-500.0,0.0005589,120]
[321127400,1711901470884,-500.0,0.0005589,120]
[321127401,1711901470894,-500.0,0.0005589,120]
[321127402,1711901470903,-500.0,0.0005589,120]
[321127403,1711901470912,-551.38512254,0.0005589,120]